bitfinex-derivatives/quotes_SOLF0:USTF0_20250626
["timestamp","ask_amount","ask_price","bid_price","bid_amount"]
[1750934844854,6.9686,143.44,143.41,6.9699]
[1750934845254,6.9686,143.44,143.39,2.4777]
[1750934845455,6.968,143.45,143.39,2.4777]
[1750934846253,34.74,143.48,143.43,6.9688]
[1750934846458,38.31491787,143.48,143.41,34.82]
[1750934846848,6.9672,143.47,143.44,6.9681]
[1750934847454,6.9672,143.47,143.45,6.9679]
[1750934848255,45.28161787,143.48,143.45,6.9679]
[1750934849063,199.805708,143.49,143.46,6.9674]
[1750934849354,38.31491787,143.52,143.44,3.49491787]
[1750934849549,6.9661,143.49,143.46,6.9673]
[1750934849750,3.49491787,143.48,143.43,2.471]
[1750934850159,6.9673,143.47,143.43,2.471]
[1750934850558,6.9673,143.47,143.44,6.9682]
[1750934850860,6.9675,143.46,143.43,2.471]
[1750934851560,6.9675,143.46,143.43,9.4395]
[1750934852160,6.9675,143.46,143.44,6.9684]
[1750934853160,6.9673,143.47,143.44,6.9684]
[1750934853661,3.49491787,143.48,143.44,6.9684]
[1750934854366,3.49491787,143.48,143.43,2.471]
[1750934854656,3.49491787,143.48,143.41,34.8]
[1750934854856,3.49491787,143.48,143.4,3.49491787]
[1750934855063,3.49491787,143.48,143.42,6.969]
[1750934855249,3.49491787,143.46,143.41,34.8]
[1750934855449,6.9682,143.45,143.42,6.9693]
[1750934855649,3.49491787,143.46,143.42,6.9693]
[1750934856157,3.49491787,143.46,143.41,34.8]
[1750934856372,3.49491787,143.44,143.39,4.7347]
[1750934856865,3.49491787,143.45,143.39,4.7347]
[1750934857563,6.9688,143.44,143.39,4.7347]
[1750934859163,6.9688,143.44,143.42,6.9692]
[1750934860863,6.9688,143.44,143.42,6.9694]
[1750934862164,6.9688,143.44,143.41,6.9697]
[1750934862364,6.9688,143.44,143.39,4.7347]
[1750934863365,6.9688,143.44,143.41,6.9696]
[1750934863664,10.46311787,143.45,143.39,4.7347]
[1750934863870,3.49491787,143.45,143.39,4.7347]
[1750934864262,6.9685,143.44,143.39,4.7347]
[1750934864966,6.9685,143.44,143.41,6.9694]
[1750934865164,6.9685,143.44,143.39,4.7347]
[1750934866567,6.9685,143.44,143.42,6.9693]
[1750934866966,6.9685,143.44,143.39,4.7347]
[1750934867265,6.9685,143.44,143.42,6.9694]
[1750934869671,34.8,143.48,143.39,4.7347]
[1750934869971,3.49491787,143.47,143.39,4.7347]
[1750934870166,6.9677,143.46,143.44,6.9684]
[1750934871560,10.46221787,143.47,143.44,6.9684]
[1750934873371,3.49491787,143.47,143.4,3.49491787]
[1750934874371,10.46191787,143.47,143.45,6.9676]
[1750934874675,34.8,143.48,143.42,34.8]
[1750934874978,41.7666,143.48,143.46,6.9672]
[1750934875167,34.8,143.48,143.46,6.9672]
[1750934875471,34.8,143.48,143.42,34.8]
[1750934875670,6.967,143.47,143.45,6.9676]
[1750934876176,41.7668,143.48,143.45,6.9676]
[1750934877776,41.7668,143.48,143.46,6.9675]
[1750934879579,34.8,143.48,143.47,6.967]
[1750934879776,3.49491787,143.51,143.43,3.49491787]
[1750934879983,3.49491787,143.51,143.43,5.94281787]
[1750934880181,10.46021787,143.51,143.49,6.9658]
[1750934880482,3.49491787,143.51,143.45,3.49491787]
[1750934881075,6.9656,143.5,143.48,6.9662]
[1750934885187,10.46021787,143.51,143.49,6.966]
[1750934889887,3.49491787,143.51,143.49,6.966]
[1750934890088,3.49491787,143.51,143.5,6.9655]
[1750934890289,3.49491787,143.53,143.46,38.33491787]
[1750934890790,3.49491787,143.53,143.51,6.9647]
[1750934891084,6.9641,143.53,143.51,6.9647]
[1750934891388,3.49491787,143.54,143.51,6.9647]
[1750934891588,3.49491787,143.54,143.5,6.9653]
[1750934891779,6.9646,143.52,143.5,6.9653]
[1750934892087,3.49491787,143.52,143.46,34.84]
[1750934892288,10.45981787,143.52,143.46,34.84]
[1750934892688,3.49491787,143.52,143.49,6.9659]
[1750934892894,6.9652,143.51,143.46,34.84]
[1750934893195,3.49491787,143.52,143.49,6.966]
[1750934893492,3.49491787,143.54,143.46,38.33491787]
[1750934893880,3.49491787,143.52,143.46,34.84]
[1750934894085,3.49491787,143.5,143.44,4.5467]
[1750934894390,10.46171787,143.48,143.45,6.9677]
[1750934895391,6.967,143.47,143.45,6.9677]
[1750934899792,10.46171787,143.48,143.46,6.9674]
[1750934903099,6.967,143.47,143.45,6.9677]
[1750934903285,3.49491787,143.46,143.42,34.84]
[1750934903489,3.49491787,143.46,143.4,148.68176026]
[1750934903690,6.9685,143.44,143.42,6.9692]
[1750934904395,6.9682,143.45,143.43,6.9689]
[1750934904694,3.49491787,143.46,143.39,34.84]
[1750934904888,3.49491787,143.44,143.39,34.84]
[1750934905586,10.46411787,143.43,143.4,6.97]
[1750934905897,3.49491787,143.45,143.39,34.84]
[1750934906795,6.9687,143.44,143.42,6.9693]
[1750934907798,10.46321787,143.45,143.42,6.9693]
[1750934908100,3.49491787,143.45,143.42,6.9693]
[1750934908397,3.49491787,143.45,143.41,6.9697]
[1750934909398,6.9688,143.44,143.41,6.9697]
[1750934910600,6.9688,143.44,143.42,6.9693]
[1750934910995,34.84,143.46,143.39,34.84]
[1750934910996,10.46311787,143.45,143.39,34.84]
[1750934911200,10.46311787,143.45,143.42,6.969]
[1750934912098,3.49491787,143.45,143.39,34.84]
[1750934912598,3.49491787,143.45,143.39,38.33491787]
[1750934912798,3.49491787,143.45,143.44,6.9684]
[1750934913701,45.38211787,143.47,143.44,6.9684]
[1750934914402,34.92,143.47,143.45,6.9679]
[1750934915302,34.92,143.47,143.46,6.9675]
[1750934915502,3.49491787,143.48,143.46,6.9675]
[1750934916501,10.46151787,143.48,143.46,6.9675]
[1750934918806,6.967,143.47,143.42,6.9664]
[1750934919308,6.967,143.47,143.44,6.9681]
[1750934919609,10.46251787,143.46,143.42,4.6858]
[1750934919807,3.49491787,143.46,143.39,34.84]
[1750934920107,6.9683,143.45,143.42,6.9692]
[1750934921917,3.49491787,143.46,143.42,6.9692]
[1750934921918,6.9686,143.44,143.42,6.9692]
[1750934922705,6.9689,143.43,143.39,34.84]
[1750934923109,3.49491787,143.44,143.39,34.84]
[1750934923410,6.9695,143.42,143.39,41.8106]
[1750934923805,6.9695,143.42,143.4,6.9703]
[1750934924716,6.9702,143.41,143.39,34.84]
[1750934924924,6.9702,143.41,143.37,7.1189]
[1750934925221,6.9702,143.41,143.39,6.9708]
[1750934925421,10.46451787,143.42,143.39,6.9708]
[1750934926121,3.49491787,143.42,143.37,7.1189]
[1750934926320,6.9692,143.43,143.37,7.1189]
[1750934927125,6.9692,143.43,143.4,6.9702]
[1750934927421,6.9695,143.42,143.4,6.9702]
[1750934928417,6.9692,143.43,143.4,6.9702]
[1750934929222,6.9695,143.42,143.4,6.9702]
[1750934929623,3.49491787,143.44,143.39,6.9706]
[1750934930525,6.9702,143.41,143.39,6.9706]
[1750934930924,3.49491787,143.44,143.4,6.9703]
[1750934931823,6.9696,143.42,143.4,6.9703]
[1750934932928,6.9691,143.43,143.4,6.9703]
[1750934933623,10.46361787,143.44,143.37,10.61381787]
[1750934933927,3.49491787,143.44,143.37,10.61381787]
[1750934934127,3.49491787,143.44,143.41,6.9697]
[1750934934330,3.49491787,143.44,143.37,10.61381787]
[1750934934728,10.46361787,143.44,143.42,6.9694]
[1750934934920,10.46361787,143.44,143.37,10.61381787]
[1750934935730,10.46361787,143.44,143.41,6.9695]
[1750934935926,10.46361787,143.44,143.37,10.61381787]
[1750934936631,3.49491787,143.44,143.42,6.9692]
[1750934938632,10.46351787,143.44,143.41,6.9697]
[1750934939431,6.969,143.43,143.41,6.9697]
[1750934940131,6.969,143.43,143.4,6.9702]
[1750934940428,3.49491787,143.44,143.4,6.9702]
[1750934940628,3.49491787,143.42,143.37,7.1189]
[1750934941031,10.46461787,143.42,143.37,7.1189]
[1750934943126,10.46461787,143.42,143.4,6.9703]
[1750934943738,3.49491787,143.44,143.41,6.9697]
[1750934944239,6.9689,143.43,143.41,6.9697]
[1750934945233,10.46361787,143.44,143.42,6.9694]
[1750934946029,6.9687,143.44,143.42,6.9694]
[1750934947842,6.9687,143.44,143.41,6.9697]
[1750934948037,6.9687,143.44,143.37,10.61381787]
[1750934948739,6.9687,143.44,143.41,6.9695]
[1750934948939,6.9687,143.44,143.37,10.61381787]
[1750934949240,6.9682,143.45,143.37,10.61381787]
[1750934950341,6.9682,143.45,143.43,6.9687]
[1750934952340,45.38251787,143.46,143.43,6.9687]
[1750934952637,3.49491787,143.48,143.43,6.9687]
[1750934953033,6.9678,143.46,143.43,6.9687]
[1750934953637,3.49491787,143.44,143.37,7.1189]
[1750934953939,3.49491787,143.42,143.37,7.1189]
[1750934954942,6.9709,143.4,143.37,14.0905]
[1750934955844,6.9709,143.4,143.38,6.9713]
[1750934959449,6.9709,143.4,143.37,7.1189]
[1750934959947,3.49491787,143.42,143.37,7.1189]
[1750934960343,6.9692,143.43,143.41,6.9698]
[1750934963050,45.38361787,143.44,143.41,6.9698]
[1750934963649,45.38361787,143.44,143.42,6.9694]
[1750934964950,10.46361787,143.44,143.42,6.9694]
[1750934965754,10.46361787,143.44,143.41,6.9695]
[1750934966554,10.46361787,143.44,143.42,6.9694]
[1750934966957,3.49491787,143.46,143.37,10.61381787]
[1750934967150,3.49491787,143.46,143.39,3.49491787]
[1750934967348,3.49491787,143.46,143.4,34.96]
[1750934967854,10.46271787,143.46,143.44,6.9684]
[1750934968054,3.49491787,143.46,143.4,34.96]
[1750934968354,6.9682,143.45,143.4,34.96]
[1750934969551,6.9682,143.45,143.42,6.969]
[1750934970855,6.9682,143.45,143.43,6.9688]
[1750934972354,34.96,143.47,143.4,34.96]
[1750934973056,6.9674,143.47,143.45,6.9678]
[1750934973959,6.9676,143.46,143.44,6.9682]
[1750934974858,6.9676,143.46,143.43,6.9687]
[1750934975568,6.9686,143.44,143.4,34.96]
[1750934975861,3.49491787,143.44,143.4,34.96]
[1750934976062,10.46471787,143.42,143.4,34.96]
[1750934976261,10.46471787,143.42,143.37,42.0789]
[1750934976262,3.49491787,143.42,143.37,42.0789]
[1750934976460,3.49491787,143.42,143.37,39.6524]
[1750934976661,6.9702,143.41,143.38,6.9709]
[1750934978160,6.9705,143.4,143.38,6.9709]
[1750934978863,6.9701,143.41,143.39,6.9707]
[1750934983259,10.46431787,143.42,143.37,39.6524]
[1750934983562,3.49491787,143.44,143.37,39.6524]
[1750934984062,6.969,143.43,143.4,6.9702]
[1750934984360,3.49491787,143.44,143.4,6.9702]
[1750934984960,6.9697,143.42,143.4,6.9702]
[1750934985161,3.49491787,143.42,143.39,6.9708]
[1750934985461,3.49491787,143.42,143.37,39.6524]
[1750934986062,10.46451787,143.42,143.37,39.6524]
[1750934987261,10.46451787,143.42,143.4,6.9704]
[1750934988257,3.49491787,143.45,143.38,3.49491787]
[1750934988769,10.46311787,143.45,143.43,6.9687]
[1750934989959,3.49491787,143.45,143.44,6.9684]
[1750934990357,3.49491787,143.45,143.38,3.49491787]
[1750934991265,3.49491787,143.45,143.43,6.9686]
[1750934992168,6.9672,143.47,143.38,3.49491787]
[1750934992366,3.49491787,143.46,143.38,3.49491787]
[1750934992767,3.49491787,143.46,143.43,6.9685]
[1750934993264,10.46271787,143.46,143.43,6.9685]
[1750934993968,6.9681,143.45,143.43,6.9685]
[1750934994566,3.49491787,143.46,143.32,13.9477]
[1750934994761,3.49491787,143.41,143.34,2.2805]
[1750934995260,6.9707,143.4,143.37,6.9714]
[1750934995767,6.9707,143.4,143.38,6.9712]
[1750934995970,3.49491787,143.41,143.38,6.9712]
[1750934996871,3.49491787,143.41,143.39,6.9709]
[1750935000270,3.49491787,143.41,143.4,6.9704]
[1750935001976,10.46491787,143.41,143.39,6.9707]
[1750935004475,10.46491787,143.41,143.38,6.9711]
[1750935004678,3.49491787,143.41,143.34,2.2805]
[1750935005377,6.9707,143.4,143.34,2.2805]
[1750935006075,6.9707,143.4,143.38,6.9711]
[1750935007579,3.49491787,143.41,143.4,6.9704]
[1750935007784,3.49491787,143.41,143.36,34.9]
[1750935009079,3.49491787,143.41,143.39,6.9705]
[1750935009381,10.46491787,143.41,143.39,6.9705]
[1750935010485,3.49491787,143.41,143.39,6.9705]
[1750935010689,2.353,143.46,143.36,38.39491787]
[1750935010981,3.49491787,143.44,143.37,5.81191787]
[1750935011181,10.46371787,143.44,143.42,6.9693]
[1750935012085,3.49491787,143.44,143.37,5.81191787]
[1750935012280,3.49491787,143.44,143.38,2.318]
[1750935012680,3.49491787,143.44,143.39,2.2835]
[1750935012884,10.46351787,143.44,143.42,6.9692]
[1750935014584,6.969,143.43,143.41,6.9697]
[1750935016182,6.969,143.43,143.4,41.8702]
[1750935016385,3.49491787,143.42,143.38,2.318]
[1750935016689,3.49491787,143.42,143.37,37.217]
[1750935016886,3.49491787,143.42,143.38,6.9711]
[1750935017094,3.49491787,143.42,143.37,37.217]
[1750935017786,6.9703,143.41,143.38,6.9713]
[1750935019486,3.49491787,143.44,143.37,40.71191787]
[1750935019690,3.49491787,143.44,143.38,2.4901]
[1750935020288,6.9689,143.43,143.41,6.9698]
[1750935020679,3.49491787,143.44,143.38,2.4901]
[1750935020881,6.9692,143.43,143.4,6.9701]
[1750935023491,3.49491787,143.44,143.4,6.9701]
[1750935023794,3.49491787,143.42,143.38,2.4901]
[1750935023993,3.49491787,143.4,143.37,37.217]
[1750935024195,3.49491787,143.4,143.38,6.9709]
[1750935024891,10.46541787,143.4,143.38,6.9709]
[1750935025592,3.49491787,143.4,143.37,37.217]
[1750935025789,6.9701,143.41,143.37,37.217]
[1750935026797,10.46461787,143.42,143.39,6.9706]
[1750935027096,3.49491787,143.42,143.39,6.9706]
[1750935027894,6.97,143.41,143.39,6.9706]
[1750935030998,3.49491787,143.42,143.37,37.217]
[1750935031699,3.49491787,143.45,143.37,40.71191787]
[1750935031894,9.43321501,143.44,143.38,2.4875]
[1750935032095,6.9685,143.44,143.42,6.9691]
[1750935032699,10.46301787,143.45,143.42,6.9691]
[1750935033095,10.46301787,143.45,143.39,2.4502]
[1750935033096,10.46301787,143.45,143.43,6.9689]
[1750935033606,6.9681,143.45,143.43,6.9689]
[1750935034098,6.9686,143.44,143.39,2.4502]
[1750935034994,6.9686,143.44,143.41,6.9694]
[1750935035197,6.9686,143.44,143.39,2.4502]
[1750935036800,6.9686,143.44,143.42,6.9694]
[1750935038901,6.9682,143.45,143.42,6.9694]
[1750935039803,6.9682,143.45,143.43,6.9689]
[1750935043506,6.9682,143.45,143.42,6.969]
[1750935043698,6.9685,143.44,143.42,6.969]
[1750935043900,214.26011084,143.49,143.39,2.4502]
[1750935044099,3.49491787,143.46,143.39,2.4502]
[1750935044400,9.47774477,143.45,143.39,2.4502]
[1750935044607,10.46271787,143.46,143.43,6.9685]
[1750935044806,9.47839386,143.45,143.43,6.9685]
[1750935045006,10.46271787,143.46,143.43,6.9685]
[1750935045209,9.47839386,143.45,143.44,6.9684]
[1750935046804,4.48032907,143.45,143.44,6.9684]
[1750935047010,6.9667,143.48,143.42,3.49491787]
[1750935047310,4.99761755,143.47,143.43,2.398]
[1750935047509,6.9667,143.48,143.43,4.8737]
[1750935047704,4.99612728,143.47,143.46,6.9673]
[1750935047906,187.54952871,143.49,143.44,2.3256]
[1750935048103,4.99612413,143.48,143.44,2.3256]
[1750935048308,34.9,143.5,143.44,2.3256]
[1750935048499,9.44035513,143.49,143.47,6.9665]
[1750935048703,41.8658,143.5,143.47,6.9665]
[1750935048904,4.99309905,143.49,143.47,6.9665]
[1750935049099,6.9658,143.5,143.48,6.9664]
[1750935049708,6.966,143.49,143.47,6.9667]
[1750935050013,3.49491787,143.51,143.45,34.9]
[1750935051613,6.9662,143.49,143.47,6.9669]
[1750935052816,10.46071787,143.5,143.47,6.9669]
[1750935053214,3.49491787,143.5,143.48,6.9665]
[1750935054013,10.46061787,143.5,143.48,6.9665]
[1750935056014,6.9652,143.51,143.49,6.966]
[1750935056217,3.49491787,143.52,143.46,3.49491787]
[1750935056413,3.49491787,143.55,143.48,3.49491787]
[1750935056618,6.9629,143.56,143.5,3.49491787]
[1750935056922,38.37491787,143.57,143.51,37.1529]
[1750935057618,3.49491787,143.57,143.51,37.1529]
[1750935058119,6.9634,143.55,143.52,6.9643]
[1750935058310,3.49491787,143.57,143.52,6.9643]
[1750935058510,3.49491787,143.55,143.51,37.1529]
[1750935058715,6.9643,143.53,143.51,37.1529]
[1750935059516,6.9646,143.52,143.49,4.7735]
[1750935059912,10.45921787,143.53,143.49,4.7735]
[1750935060617,10.45921787,143.53,143.5,6.9653]
[1750935062522,6.9643,143.53,143.5,6.9653]
[1750935062725,6.9643,143.53,143.51,6.965]
[1750935063425,6.9643,143.53,143.5,6.9653]
[1750935066329,6.9643,143.53,143.5,6.9653]
[1750935068132,6.9643,143.53,143.51,6.965]
[1750935072241,10.45881787,143.54,143.49,4.7735]
[1750935073139,10.45881787,143.54,143.52,6.9643]
[1750935073441,3.49491787,143.55,143.49,8.26841787]
[1750935074240,3.49491787,143.55,143.53,6.964]
[1750935074840,10.45821787,143.55,143.53,6.964]
[1750935075942,10.45821787,143.55,143.54,6.9636]
[1750935076341,3.49491787,143.55,143.54,6.9636]
[1750935077845,3.49491787,143.55,143.53,6.9637]
[1750935079043,10.45811787,143.55,143.53,6.9637]
[1750935080832,3.49491787,143.55,143.54,6.9636]
[1750935081439,6.9629,143.56,143.54,6.9636]
[1750935081642,10.45781787,143.56,143.54,6.9636]
[1750935084946,10.45781787,143.56,143.53,6.9638]
[1750935085649,10.45781787,143.56,143.54,6.9635]
[1750935085839,3.49491787,143.56,143.49,8.26841787]
[1750935086036,3.49491787,143.58,143.51,3.49491787]
[1750935086240,3.49491787,143.58,143.56,6.9625]
[1750935086440,3.49491787,143.58,143.52,37.205]
[1750935086847,3.49491787,143.58,143.55,6.9628]
[1750935087045,10.45681787,143.58,143.55,6.9628]
[1750935087347,10.45681787,143.58,143.52,37.205]
[1750935087548,10.45681787,143.58,143.56,6.9622]
[1750935090253,6.9614,143.59,143.52,37.205]
[1750935090645,3.49491787,143.6,143.53,3.49491787]
[1750935090847,10.45591787,143.6,143.58,6.9615]
[1750935091752,15.50077149,143.6,143.58,6.9615]
[1750935092054,10.45591787,143.6,143.58,6.9615]
[1750935092648,15.50271337,143.6,143.57,6.9619]
[1750935092954,3.49491787,143.6,143.54,4.5187]
[1750935093153,8.54171337,143.6,143.54,4.5187]
[1750935093343,6.9614,143.59,143.54,4.5187]
[1750935093950,6.9614,143.59,143.57,6.9619]
[1750935094652,6.9614,143.59,143.56,6.9624]
[1750935094852,6.9617,143.58,143.56,6.9624]
[1750935096158,3.49491787,143.6,143.54,4.5187]
[1750935096159,3.49491787,143.6,143.55,6.9629]
[1750935096755,6.9619,143.58,143.56,6.9624]
[1750935097154,6.9619,143.58,143.54,4.5187]
[1750935097455,6.9614,143.59,143.56,6.9623]
[1750935097658,4.49521475,143.62,143.57,34.82]
[1750935097858,6.96,143.62,143.59,6.9609]
[1750935098360,6.96,143.62,143.57,34.82]
[1750935098768,6.96,143.62,143.6,6.9605]
[1750935099061,11.45471475,143.63,143.57,34.82]
[1750935099259,6.9595,143.63,143.57,34.82]
[1750935099460,11.45471475,143.63,143.57,34.82]
[1750935099659,11.45471475,143.63,143.61,6.9602]
[1750935099958,6.9595,143.63,143.61,6.9602]
[1750935100159,11.45411475,143.64,143.62,6.9595]
[1750935100357,5.05921496,143.64,143.58,2.3984]
[1750935100756,14.94792341,143.65,143.59,3.49491787]
[1750935101061,9.55317962,143.66,143.59,5.75451787]
[1750935101271,16.50780943,143.66,143.64,6.9587]
[1750935101458,9.54980943,143.66,143.61,34.82]
[1750935101951,6.9585,143.65,143.62,6.9595]
[1750935102150,5.05540389,143.66,143.62,6.9595]
[1750935102358,5.05540389,143.66,143.61,41.78]
[1750935102359,8.55032176,143.65,143.61,41.78]
[1750935102671,2.43532498,143.64,143.61,41.78]
[1750935102853,8.55032176,143.65,143.61,41.78]
[1750935103061,2.43532498,143.64,143.61,41.78]
[1750935103259,6.9588,143.64,143.61,41.78]
[1750935104164,6.9593,143.63,143.61,41.78]
[1750935105570,6.9593,143.63,143.61,6.96]
[1750935109863,10.45391787,143.64,143.59,2.2596]
[1750935110871,10.45391787,143.64,143.62,6.9596]
[1750935111063,6.959,143.64,143.62,6.9596]
[1750935112573,6.9585,143.65,143.59,2.2596]
[1750935112771,3.49491787,143.66,143.59,4.5176]
[1750935113273,6.959,143.64,143.61,6.9599]
[1750935113871,6.9592,143.63,143.61,6.9599]
[1750935114271,2.43673451,143.65,143.61,6.9599]
[1750935115372,6.959,143.64,143.62,6.9596]
[1750935116768,6.959,143.64,143.61,6.9599]
[1750935116962,2.43508882,143.65,143.61,6.9599]
[1750935117168,13.09829241,143.66,143.61,6.9599]
[1750935117370,6.9588,143.64,143.61,6.9599]
[1750935117770,2.43536542,143.65,143.61,6.9599]
[1750935117968,3.49491787,143.64,143.59,2.2596]
[1750935118268,3.49491787,143.64,143.58,37.1984]
[1750935118472,6.9599,143.62,143.6,6.9606]
[1750935121775,6.9594,143.63,143.6,6.9606]
[1750935122874,6.9594,143.63,143.58,37.1984]
[1750935123487,6.959,143.64,143.58,37.1984]
[1750935124182,6.959,143.64,143.61,6.9597]
[1750935124583,6.9593,143.63,143.61,6.9597]
[1750935125677,8.6011051,143.65,143.61,6.9597]
[1750935125678,9.39657805,143.64,143.61,6.9597]
[1750935125877,6.959,143.64,143.61,6.9597]
[1750935127885,6.9593,143.63,143.61,6.9597]
[1750935129784,6.9597,143.62,143.6,6.9604]
[1750935129985,3.49491787,143.61,143.54,34.74]
[1750935130191,2.44147483,143.6,143.54,34.74]
[1750935130384,6.9612,143.59,143.56,6.9626]
[1750935130684,2.44147929,143.6,143.54,34.74]
[1750935130886,8.61082583,143.61,143.54,34.74]
[1750935131189,2.44162608,143.6,143.54,34.74]
[1750935131390,3.49491787,143.61,143.54,34.74]
[1750935131691,6.9613,143.59,143.57,6.9619]
[1750935131876,4.50916531,143.63,143.54,34.74]
[1750935132080,3.49491787,143.61,143.54,34.74]
[1750935132285,9.40300752,143.6,143.57,6.9618]
[1750935132487,6.961,143.6,143.57,6.9618]
[1750935133283,6.9612,143.59,143.57,6.9618]
[1750935133895,8.00408318,143.61,143.54,34.74]
[1750935133896,3.49491787,143.61,143.56,6.9624]
[1750935134197,12.06414934,143.6,143.56,6.9624]
[1750935134388,11.0499019,143.59,143.56,6.9624]
[1750935134588,2.45131801,143.58,143.56,6.9624]
[1750935134887,6.9619,143.58,143.56,6.9624]
[1750935135283,10.45631787,143.59,143.56,6.9624]
[1750935135482,2.45201714,143.58,143.56,6.9624]
[1750935135782,10.45631787,143.59,143.56,6.9624]
[1750935135985,2.44465733,143.58,143.56,6.9622]
[1750935136185,10.45631787,143.59,143.56,6.9622]
[1750935136388,2.44458328,143.58,143.56,6.9622]
[1750935136579,9.59422803,143.63,143.54,34.74]
[1750935136783,15.53362305,143.62,143.54,34.74]
[1750935137092,6.9608,143.6,143.57,6.9619]
[1750935137287,2.44447715,143.59,143.57,6.9619]
[1750935137591,11.4506095,143.6,143.57,6.9619]
[1750935137793,2.4445729,143.59,143.57,6.9619]
[1750935137993,11.4506095,143.6,143.57,6.9619]
[1750935138198,2.4445729,143.59,143.58,6.9617]
[1750935138598,2.4445729,143.59,143.54,34.74]
[1750935138892,3.49491787,143.61,143.54,34.74]
[1750935139092,7.53708215,143.6,143.54,34.74]
[1750935139290,2.44458398,143.59,143.54,34.74]
[1750935139493,6.9607,143.6,143.54,34.74]
[1750935139792,2.44449679,143.59,143.54,34.74]
[1750935139992,6.9607,143.6,143.57,6.9618]
[1750935140291,2.44449679,143.59,143.57,6.9618]
[1750935140491,6.9607,143.6,143.57,6.9618]
[1750935140694,2.44462344,143.59,143.57,6.9618]
[1750935140893,6.9607,143.6,143.57,6.9618]
[1750935141090,2.44462344,143.59,143.57,6.9618]
[1750935141291,6.9607,143.6,143.57,6.9618]
[1750935141489,2.44474624,143.59,143.57,6.9618]
[1750935141791,6.9607,143.6,143.57,6.9618]
[1750935141988,2.44474624,143.59,143.57,6.9618]
[1750935142191,6.9607,143.6,143.57,6.9618]
[1750935142393,2.44475058,143.59,143.57,6.9618]
[1750935142696,6.9607,143.6,143.57,6.9618]
[1750935142893,2.44487138,143.59,143.57,6.9618]
[1750935143098,6.9607,143.6,143.57,6.9618]
[1750935143393,2.44470152,143.59,143.57,6.9618]
[1750935143689,6.9607,143.6,143.57,6.9618]
[1750935143894,9.40590152,143.59,143.57,6.9618]
[1750935144197,3.49491787,143.59,143.56,6.9624]
[1750935144899,3.49491787,143.59,143.53,7.2469]
[1750935145202,3.49491787,143.59,143.53,4.7644]
[1750935145792,6.962,143.58,143.55,6.9628]
[1750935145997,6.962,143.58,143.53,4.7644]
[1750935146205,2.23451756,143.58,143.54,2.23451756]
[1750935147798,2.23451756,143.57,143.53,2.3555]
[1750935147993,6.9643,143.53,143.5,6.9654]
[1750935148194,3.49526063,143.52,143.48,2.3835]
[1750935148493,6.9663,143.49,143.46,41.7072]
[1750935149502,6.9663,143.49,143.47,6.9669]
[1750935149804,10.46096063,143.5,143.47,6.9669]
[1750935150500,6.9651,143.51,143.46,34.74]
[1750935150803,6.9651,143.51,143.48,6.9662]
[1750935152096,3.49526063,143.5,143.45,2.3063]
[1750935152497,6.9668,143.48,143.45,6.9678]
[1750935152992,6.9662,143.49,143.46,6.9674]
[1750935153198,3.49526063,143.5,143.46,6.9674]
[1750935153502,3.49526063,143.5,143.43,38.87526063]
[1750935153802,6.9665,143.48,143.45,6.9676]
[1750935155307,6.9663,143.49,143.46,6.9674]
[1750935156107,6.9663,143.49,143.47,6.9669]
[1750935156607,6.9663,143.49,143.46,6.9673]
[1750935156807,6.9666,143.48,143.46,6.9673]
[1750935158909,6.9662,143.49,143.46,6.9673]
[1750935159309,3.49526063,143.5,143.46,6.9673]
[1750935159510,6.9665,143.49,143.46,6.9673]
[1750935162313,6.9661,143.49,143.47,6.9668]
[1750935163215,6.9661,143.49,143.46,6.9672]
[1750935167117,10.46106063,143.5,143.47,6.967]
[1750935167317,10.46106063,143.5,143.43,38.87526063]
[1750935167514,3.49526063,143.52,143.45,3.49526063]